lending/lending_fUSD_20240112
["ID","MTS","AMOUNT","RATE_DAILY","PERIOD"]
[311394524,1705077033683,2018.10308734,0.00022499,2]
[311394525,1705077033696,-1106.375,0.00022501,2]
[311394526,1705077033710,-58171.88543309,0.00022501,2]
[311394527,1705077033720,-1462.06622844,0.00022502,4]
[311394528,1705077033729,-155.00209641,0.00022502,2]
[311394529,1705077033739,-486.78125949,0.00022502,2]
[311394530,1705077033748,-1656.07949933,0.00022502,2]
[311394531,1705077033758,-290.74136619,0.00022502,2]
[311394532,1705077033768,-351.6577266,0.00022502,2]
[311394533,1705077033778,-253.39734475,0.00022502,2]
[311394534,1705077033788,-353.5081814,0.00022502,2]
[311394535,1705077033798,-249.90379306,0.00022502,2]
[311394536,1705077033809,-1136.36510211,0.00022502,2]
[311394537,1705077033819,-358.91504913,0.00022502,2]
[311394538,1705077033829,-1244.17921003,0.00022502,2]
[311394539,1705077033839,-476.78037266,0.00022502,2]
[311394540,1705077033849,-224.97614673,0.00022502,2]
[311394541,1705077033859,-156.27401366,0.00022502,2]
[311394542,1705077033869,-6256.77073263,0.00022503,2]
[311394543,1705077033881,-471.30998193,0.00022504,2]
[311394544,1705077033891,-156.0502567,0.00022504,2]
[311394545,1705077033900,-155.40720409,0.00022504,2]
[311394546,1705077033909,-155.36310221,0.00022504,2]
[311394547,1705077033919,-389.03759943,0.00022504,2]
[311394548,1705077033929,-155.0,0.00022504,2]
[311394549,1705077033938,-190.47470563,0.00022504,2]
[311394550,1705077033947,-226.7799535,0.00022504,2]
[311394551,1705077033957,-7311.27319156,0.00022504,2]
[311394552,1705077033967,-196.42218781,0.00022504,2]
[311394553,1705077033977,-1680.77123588,0.00022504,2]
[311394554,1705077033987,-219.85090487,0.00022504,2]
[311394555,1705077033996,-158.96199859,0.00022504,2]
[311394556,1705077034006,-1663.27922441,0.00022504,2]
[311394557,1705077034015,-221.64622241,0.00022504,2]
[311394558,1705077034025,-266.21470488,0.00022504,2]
[311394559,1705077034034,-3159.74835752,0.00022504,2]
[311394560,1705077034044,-214.59382582,0.00022505,2]
[311394561,1705077034054,-1466.31721054,0.00022505,2]
[311394562,1705077034063,-4621.93288598,0.00022505,2]
[311394563,1705077034073,-391.79890969,0.00022505,2]
[311394564,1705077034082,-279.50999313,0.00022505,2]
[311394565,1705077034091,-278.75448039,0.00022505,2]
[311394566,1705077034101,-500.00466881,0.00022505,2]
[311394567,1705077034111,-2202.65554477,0.00022505,2]
[311394568,1705077034121,-202.9641373,0.00022505,2]
[311394569,1705077034133,-155.0,0.00022505,2]
[311394570,1705077034143,-220.73840755,0.00022505,2]
[311394572,1705077034153,-162.21430324,0.00022505,2]
[311394574,1705077034162,-157.64396862,0.00022505,2]
[311394576,1705077034172,-155.40173906,0.00022505,2]
[311394577,1705077034183,-249.9590989,0.00022505,2]
[311394578,1705077034193,-155.13244891,0.00022505,2]
[311394579,1705077034203,-167.14187597,0.00022505,2]
[311394580,1705077034214,-520.90756679,0.00022505,2]
[311394581,1705077034224,-500.0,0.00022505,2]
[311394582,1705077034234,-500.0,0.00022505,2]
[311394583,1705077034244,-500.0,0.00022505,2]
[311394584,1705077034255,-500.0,0.00022505,2]
[311394585,1705077034265,-500.0,0.00022505,2]
[311394586,1705077034275,-500.0,0.00022505,2]
[311394587,1705077034286,-500.0,0.00022505,2]
[311394588,1705077034297,-500.0,0.00022505,2]
[311394589,1705077034308,-500.0,0.00022505,2]
[311394590,1705077034317,-500.0,0.00022505,2]
[311394591,1705077034327,-625.39,0.00022505,2]
[311394592,1705077034337,-500.0,0.00022505,2]
[311394593,1705077034347,-500.0,0.00022505,2]
[311394594,1705077034356,-637.07189064,0.00022505,2]
[311394595,1705077034366,-3459.03830202,0.00022506,2]
[311394596,1705077034376,-1429.49,0.00022506,2]
[311394597,1705077034391,-9945.1,0.00022506,2]
[311394598,1705077034401,-978.78,0.00022506,2]
[311394599,1705077034410,-1378.24,0.00022506,2]
[311394600,1705077034419,-867.37,0.00022506,2]
[311394601,1705077034429,-576.62,0.00022506,2]
[311394602,1705077034438,-1895.37,0.00022506,2]
[311394603,1705077034448,-741.66,0.00022506,2]
[311394604,1705077034458,-594.56,0.00022506,2]
[311394605,1705077034499,-28063.97,0.00022506,2]
[311394606,1705077034509,-500.0,0.00022506,2]
[311394607,1705077034519,-1179.37,0.00022506,2]
[311394608,1705077034529,-1161.83,0.00022506,2]
[311394609,1705077034539,-16126.91,0.00022506,2]
[311394610,1705077034549,-5776.69,0.00022506,2]
[311394611,1705077034560,-854.65,0.00022506,2]
[311394612,1705077034571,-788.93,0.00022506,2]
[311394613,1705077034581,-500.0,0.00022506,2]
[311394614,1705077034591,-846.93,0.00022506,2]
[311394615,1705077034601,-500.0,0.00022506,2]
[311394616,1705077034611,-500.0,0.00022506,2]
[311394617,1705077034621,-2347.67,0.00022506,2]
[311394618,1705077034633,-944.74,0.00022506,2]
[311394619,1705077034642,-556.66,0.00022506,2]
[311394620,1705077034651,-915.17,0.00022506,2]
[311394621,1705077034661,-801.65,0.00022506,2]
[311394622,1705077034671,-11316.9,0.00022506,2]
[311394623,1705077034681,-1188.34,0.00022506,2]
[311394624,1705077034691,-1285.67,0.00022506,2]
[311394625,1705077034700,-520.06,0.00022506,2]
[311394626,1705077034709,-500.0,0.00022506,2]
[311394627,1705077034718,-1592.48,0.00022506,2]
[311394628,1705077034728,-575.88,0.00022506,2]
[311394629,1705077034738,-1869.56,0.00022506,2]
[311394630,1705077034747,-1025.29,0.00022506,2]
[311394631,1705077034756,-765.07,0.00022506,2]
[311394632,1705077034766,-1932.17,0.00022506,2]
[311394633,1705077034776,-500.0,0.00022506,2]
[311394634,1705077034785,-500.0,0.00022506,2]
[311394635,1705077034795,-825.06,0.00022506,2]
[311394636,1705077034805,-195.22,0.00022506,2]
[311394637,1705077034814,-203.19794191,0.00022507,2]
[311394638,1705077034824,-761.78064637,0.00022507,2]
[311394639,1705077034833,-222.94994172,0.00022507,2]
[311394640,1705077034844,-1006.10899707,0.00022507,2]
[311394641,1705077034853,-54012.5021531,0.00022507,2]
[311394642,1705077034863,-2523.89576785,0.00022507,2]
[311394643,1705077034872,-385.02931366,0.00022507,2]
[311394644,1705077034882,-155.93966071,0.00022507,2]
[311394645,1705077034892,-245.98964121,0.00022507,2]
[311394646,1705077034901,-1371.38,0.00022507,2]
[311394647,1705077034910,-612.7,0.00022507,2]
[311394648,1705077034920,-923.28,0.00022507,2]
[311394649,1705077034930,-1832.72,0.00022507,2]
[311394650,1705077034939,-155.0,0.00022508,2]
[311394651,1705077034948,-650.63857699,0.00022508,2]
[311394652,1705077034958,-525.70529944,0.00022508,2]
[311394653,1705077034968,-265.34853388,0.00022508,2]
[311394654,1705077034977,-195.52042359,0.00022508,2]
[311394655,1705077034987,-164.13920204,0.00022508,2]
[311394656,1705077034997,-158.56041797,0.00022508,2]
[311394657,1705077035006,-155.0,0.00022508,2]
[311394658,1705077035016,-252.23869713,0.00022508,2]
[311394659,1705077035025,-473.57815491,0.00022508,2]
[311394660,1705077035035,-155.6718047,0.00022508,2]
[311394661,1705077035044,-257.17367523,0.00022508,2]
[311394662,1705077035054,-3107.77880528,0.00022508,2]
[311394663,1705077035064,-523.20663738,0.00022508,2]
[311394664,1705077035073,-161.78617435,0.00022508,2]
[311394665,1705077035083,-155.0,0.00022508,2]
[311394666,1705077035093,-210.54949407,0.00022508,2]
[311394667,1705077035104,-214.8965107,0.00022508,2]
[311394668,1705077035113,-276.45356326,0.00022508,2]
[311394669,1705077035123,-159.60119728,0.00022508,2]
[311394670,1705077035135,-189.57019599,0.00022508,2]
[311394671,1705077035144,-627.79851458,0.00022508,2]
[311394672,1705077035154,-196.15103659,0.00022508,2]
[311394673,1705077035164,-262.94748596,0.00022508,2]
[311394674,1705077035174,-199.70497621,0.00022508,2]
[311394675,1705077035183,-155.0,0.00022508,2]
[311394676,1705077035193,-330.41678734,0.00022508,2]
[311394677,1705077035202,-384.33273248,0.00022508,2]
[311394678,1705077035212,-156.00104206,0.00022508,2]
[311394679,1705077035222,-452.74315171,0.00022508,2]
[311394680,1705077035232,-155.31360228,0.00022508,2]
[311394681,1705077035242,-1394.93,0.00022508,2]
[311394682,1705077035251,-500.0,0.00022508,2]
[311394683,1705077035261,-1331.39,0.00022508,2]
[311394684,1705077035270,-1601.07,0.00022508,2]
[311394685,1705077035280,-1448.76,0.00022508,5]
[311394686,1705077035290,-553.23,0.00022508,2]
[311394687,1705077035299,-6027.14,0.00022508,2]
[311394688,1705077035308,-8057.22,0.00022508,2]
[311394689,1705077035318,-2024.92,0.00022508,2]
[311394690,1705077035327,-839.27,0.00022508,2]
[311394691,1705077035337,-1398.26,0.00022508,2]
[311394692,1705077035346,-4395.36,0.00022508,2]
[311394693,1705077035355,-791.14,0.00022508,2]
[311394694,1705077035365,-157.62498938,0.00022509,2]
[311394695,1705077035376,-155.24545964,0.00022509,2]
[311394696,1705077035386,-155.33556615,0.00022509,2]
[311394697,1705077035395,-4311.05531194,0.00022509,2]
[311394698,1705077035404,-500.0,0.00022509,2]
[311394699,1705077035414,-500.0,0.00022509,2]
[311394700,1705077035424,-976.62,0.00022509,2]
[311394701,1705077035433,-500.0,0.00022509,2]
[311394702,1705077035443,-502.09430317,0.00022509,2]
[311394703,1705077035452,-400.1,0.00022509,2]
[311394704,1705077035462,-500.0,0.00022509,2]
[311394705,1705077035473,-937.67,0.00022509,2]
[311394706,1705077035483,-500.0,0.00022509,2]
[311394707,1705077035492,-500.0,0.00022509,2]
[311394708,1705077035501,-500.0,0.00022509,2]
[311394709,1705077035510,-500.0,0.00022509,2]
[311394710,1705077035520,-500.0,0.00022509,2]
[311394711,1705077035529,-500.0,0.00022509,2]
[311394712,1705077035539,-500.0,0.00022509,2]
[311394713,1705077035548,-500.0,0.00022509,2]
[311394714,1705077035558,-500.0,0.00022509,2]
[311394715,1705077035568,-226.08695647,0.00022509,2]
[311394716,1705077035578,-500.0,0.00022509,2]
[311394717,1705077035587,-500.0,0.00022509,2]
[311394718,1705077035597,-500.0,0.00022509,2]
[311394719,1705077035606,-500.0,0.00022509,2]
[311394720,1705077035616,-500.0,0.00022509,2]
[311394721,1705077035627,-500.0,0.00022509,2]
[311394722,1705077035638,-500.0,0.00022509,2]
[311394723,1705077035648,-500.0,0.00022509,2]
[311394724,1705077035657,-500.0,0.00022509,2]
[311394725,1705077035667,-500.0,0.00022509,2]
[311394726,1705077035676,-500.0,0.00022509,2]
[311394727,1705077035686,-500.0,0.00022509,2]
[311394728,1705077035696,-503.83954388,0.00022509,2]
[311394729,1705077035705,-500.0,0.00022509,2]
[311394730,1705077035714,-500.0,0.00022509,2]
[311394731,1705077035723,-500.0,0.00022509,2]
[311394732,1705077035733,-1107.53,0.00022509,2]
[311394733,1705077035742,-500.0,0.00022509,2]
[311394734,1705077035751,-500.0,0.00022509,2]
[311394735,1705077035760,-500.0,0.00022509,2]
[311394736,1705077035770,-608.63,0.00022509,2]
[311394737,1705077035779,-500.0,0.00022509,2]
[311394738,1705077035787,-500.0,0.00022509,7]
[311394739,1705077035797,-500.0,0.00022509,2]
[311394740,1705077035807,-500.0,0.00022509,2]
[311394741,1705077035816,-500.0,0.00022509,2]
[311394742,1705077035825,-500.0,0.00022509,2]
[311394743,1705077035835,-500.0,0.00022509,2]
[311394744,1705077035844,-500.0,0.00022509,2]
[311394745,1705077035854,-500.0,0.00022509,2]
[311394746,1705077035863,-500.0,0.00022509,2]
[311394747,1705077035873,-500.0,0.00022509,2]
[311394748,1705077035885,-500.0,0.00022509,2]
[311394749,1705077035895,-500.0,0.00022509,2]
[311394750,1705077035905,-565.8,0.00022509,2]
[311394751,1705077035915,-500.0,0.00022509,2]
[311394752,1705077035924,-500.0,0.00022509,2]
[311394753,1705077035933,-500.0,0.00022509,2]
[311394754,1705077035942,-500.0,0.00022509,2]
[311394755,1705077035951,-560.13456184,0.00022509,2]
[311394756,1705077035960,-500.0,0.00022509,2]
[311394757,1705077035970,-500.0,0.00022509,2]
[311394758,1705077035980,-500.0,0.00022509,2]
[311394759,1705077035989,-500.0,0.00022509,2]
[311394760,1705077035999,-500.0,0.00022509,2]
[311394761,1705077036009,-523.56,0.00022509,2]
[311394762,1705077036020,-594.07,0.00022509,2]
[311394763,1705077036029,-1120.5,0.00022509,2]
[311394764,1705077036038,-571.6,0.00022509,2]
[311394765,1705077036048,-500.0,0.00022509,2]
[311394766,1705077036057,-345.34740931,0.00022509,2]
[311394767,1705077036067,-500.0,0.00022509,2]
[311394768,1705077036076,-520.36623557,0.00022509,2]
[311394769,1705077036086,-500.0,0.00022509,2]
[311394770,1705077036095,-500.0,0.00022509,2]
[311394771,1705077036105,-272.20449486,0.00022509,2]
[311394772,1705077036114,-500.0,0.00022509,2]
[311394773,1705077036123,-500.0,0.00022509,2]
[311394774,1705077036133,-500.0,0.00022509,2]
[311394775,1705077036142,-500.0,0.00022509,2]
[311394776,1705077036151,-500.0,0.00022509,2]
[311394777,1705077036343,-500.0,0.00022509,2]
[311394778,1705077036354,-500.0,0.00022509,2]
[311394779,1705077036363,-500.0,0.00022509,2]
[311394780,1705077036373,-500.0,0.00022509,2]
[311394781,1705077036384,-500.0,0.00022509,2]
[311394782,1705077036394,-500.0,0.00022509,2]
[311394783,1705077036403,-992.52,0.00022509,2]
[311394784,1705077036413,-605.97,0.00022509,2]
[311394785,1705077036422,-500.0,0.00022509,2]
[311394786,1705077036432,-1474.92,0.00022509,2]
[311394787,1705077036442,-4177.28,0.00022509,2]
[311394788,1705077036452,-500.0,0.00022509,2]
[311394789,1705077036462,-500.0,0.00022509,2]
[311394790,1705077036473,-500.0,0.00022509,2]
[311394791,1705077036483,-500.0,0.00022509,2]
[311394792,1705077036493,-500.0,0.00022509,2]
[311394793,1705077036503,-500.0,0.00022509,2]
[311394794,1705077036513,-1872.87,0.00022509,2]
[311394795,1705077036522,-500.0,0.00022509,2]
[311394796,1705077036532,-500.0,0.00022509,2]
[311394797,1705077036541,-500.0,0.00022509,2]
[311394798,1705077036552,-500.0,0.00022509,2]
[311394799,1705077036563,-1357.01,0.00022509,2]
[311394800,1705077036573,-10644.17,0.00022509,2]
[311394801,1705077036583,-500.0,0.00022509,2]
[311394802,1705077036592,-150.0,0.00022509,2]
[311394803,1705077036602,-500.0,0.00022509,2]
[311394804,1705077036612,-500.0,0.00022509,2]
[311394805,1705077036621,-500.0,0.00022509,2]
[311394806,1705077036632,-500.0,0.00022509,2]
[311394807,1705077036641,-4961.7,0.00022509,2]
[311394808,1705077036651,-933.63,0.00022509,2]
[311394809,1705077036661,-500.0,0.00022509,2]
[311394810,1705077036670,-500.0,0.00022509,2]
[311394811,1705077036680,-500.0,0.00022509,2]
[311394812,1705077036689,-636.31,0.00022509,2]
[311394813,1705077036698,-500.0,0.00022509,2]
[311394814,1705077036708,-500.0,0.00022509,2]
[311394815,1705077036718,-1195.27,0.00022509,2]
[311394816,1705077036727,-1808.5,0.00022509,2]
[311394817,1705077036736,-500.0,0.00022509,2]
[311394818,1705077036746,-889.43,0.00022509,2]
[311394819,1705077036755,-1852.8,0.00022509,2]
[311394820,1705077036764,-500.0,0.00022509,2]
[311394821,1705077036774,-3071.92,0.00022509,2]
[311394822,1705077036783,-500.0,0.00022509,2]
[311394823,1705077036793,-2545.58,0.00022509,2]
[311394824,1705077036802,-500.0,0.00022509,2]
[311394825,1705077036811,-671.07,0.00022509,2]
[311394826,1705077036820,-500.0,0.00022509,2]
[311394827,1705077036830,-500.0,0.00022509,2]
[311394828,1705077036839,-500.0,0.00022509,2]
[311394829,1705077036848,-2126.07,0.00022509,2]
[311394830,1705077036857,-500.0,0.00022509,2]
[311394831,1705077036867,-877.7,0.00022509,2]
[311394832,1705077036876,-500.0,0.00022509,2]
[311394833,1705077036886,-555.49499146,0.00022509,2]
[311394834,1705077036895,-1558.28,0.00022509,2]
[311394835,1705077036904,-500.0,0.00022509,2]
[311394836,1705077036913,-500.0,0.00022509,2]
[311394837,1705077036923,-3767.3,0.00022509,2]
[311394838,1705077036932,-1845.89,0.00022509,2]
[311394839,1705077036942,-669.67,0.00022509,2]
[311394840,1705077036951,-500.0,0.00022509,2]
[311394841,1705077036960,-2228.6,0.00022509,2]
[311394842,1705077036969,-500.0,0.00022509,2]
[311394843,1705077036979,-500.0,0.00022509,2]
[311394844,1705077036988,-500.0,0.00022509,2]
[311394845,1705077036998,-500.0,0.00022509,2]
[311394846,1705077037007,-500.0,0.00022509,2]
[311394847,1705077037017,-846.0,0.00022509,2]
[311394848,1705077037026,-2416.09,0.00022509,2]
[311394849,1705077037035,-13698.75,0.00022509,2]
[311394850,1705077037045,-1205.25,0.00022509,2]
[311394851,1705077037054,-500.0,0.00022509,2]
[311394852,1705077037063,-500.0,0.00022509,2]
[311394853,1705077037073,-3731.97,0.00022509,2]
[311394854,1705077037082,-500.0,0.00022509,2]
[311394855,1705077037092,-500.0,0.00022509,2]
[311394856,1705077037101,-812.57,0.00022509,2]
[311394857,1705077037110,-500.0,0.00022509,2]
[311394858,1705077037123,-992.11,0.00022509,2]
[311394859,1705077037133,-500.0,0.00022509,2]
[311394860,1705077037142,-500.0,0.00022509,2]
[311394861,1705077037151,-2269.52,0.00022509,2]
[311394862,1705077037162,-1615.37,0.00022509,2]
[311394863,1705077037172,-500.0,0.00022509,2]
[311394864,1705077037184,-500.0,0.00022509,2]
[311394865,1705077037194,-946.07,0.00022509,2]
[311394867,1705077037203,-500.0,0.00022509,2]
[311394869,1705077037213,-482.23600759,0.00022509,2]
[311394871,1705077037222,-500.0,0.00022509,2]
[311394873,1705077037232,-500.0,0.00022509,2]
[311394875,1705077037241,-636.34,0.00022509,2]
[311394877,1705077037251,-500.0,0.00022509,2]
[311394879,1705077037260,-656.56,0.00022509,2]
[311394881,1705077037269,-500.0,0.00022509,2]
[311394883,1705077037278,-579.11,0.00022509,2]
[311394885,1705077037288,-500.0,0.0002251,2]
[311394887,1705077037297,-2905.1265303,0.0002251,2]
[311394889,1705077037307,-171.68625232,0.0002251,2]
[311394891,1705077037317,-207.56937403,0.0002251,2]
[311394893,1705077037326,-3855.00674069,0.0002251,2]
[311394895,1705077037335,-499.99,0.0002251,2]
[311394898,1705077037345,-500.0,0.0002251,2]
[311394901,1705077037354,-500.0,0.0002251,2]
[311394904,1705077037363,-500.0,0.0002251,2]
[311394907,1705077037373,-500.0,0.0002251,2]
[311394910,1705077037384,-500.0,0.0002251,2]
[311394914,1705077037394,-500.0,0.0002251,2]
[311394917,1705077037403,-500.0,0.0002251,2]
[311394921,1705077037413,-500.0,0.0002251,2]
[311394925,1705077037423,-600.96,0.0002251,2]
[311394929,1705077037433,-500.0,0.0002251,2]
[311394933,1705077037442,-500.0,0.0002251,2]
[311394937,1705077037451,-500.0,0.0002251,2]
[311394940,1705077037461,-500.0,0.0002251,2]
[311394942,1705077037470,-500.0,0.0002251,2]
[311394945,1705077037481,-500.0,0.0002251,2]
[311394948,1705077037491,-500.0,0.0002251,2]
[311394951,1705077037501,-500.0,0.0002251,2]
[311394954,1705077037510,-500.0,0.0002251,2]
[311394957,1705077037520,-571.62,0.0002251,2]
[311394960,1705077037529,-500.0,0.0002251,2]
[311394963,1705077037538,-500.0,0.0002251,2]
[311394965,1705077037548,-170.94920964,0.0002251,2]
[311394967,1705077037557,-1417.94,0.0002251,2]
[311394968,1705077037567,-479.23406695,0.0002251,2]
[311394969,1705077037577,-500.0,0.0002251,2]
[311394970,1705077037586,-500.0,0.0002251,2]
[311394971,1705077037595,-500.0,0.0002251,2]
[311394972,1705077037605,-500.0,0.0002251,2]
[311394973,1705077037614,-965.53,0.0002251,2]
[311394974,1705077037624,-500.0,0.0002251,2]
[311394975,1705077037635,-500.0,0.0002251,2]
[311394976,1705077037644,-2036.95,0.0002251,2]
[311394977,1705077037655,-500.0,0.0002251,2]
[311394978,1705077037664,-500.0,0.0002251,2]
[311394979,1705077037674,-500.0,0.0002251,2]
[311394980,1705077037683,-500.0,0.0002251,2]
[311394981,1705077037692,-500.0,0.0002251,2]
[311394982,1705077037702,-500.0,0.0002251,2]
[311394983,1705077037711,-500.0,0.0002251,2]
[311394984,1705077037721,-500.0,0.0002251,2]
[311394985,1705077037731,-500.0,0.0002251,2]
[311394986,1705077037740,-312.13966466,0.0002251,2]
[311394987,1705077037749,-500.0,0.0002251,2]
[311394988,1705077037759,-500.0,0.0002251,2]
[311394989,1705077037768,-500.0,0.0002251,2]
[311394990,1705077037778,-500.0,0.0002251,2]
[311394991,1705077037788,-500.0,0.0002251,2]
[311394992,1705077037797,-1891.32,0.0002251,2]
[311394993,1705077037807,-500.0,0.0002251,2]
[311394994,1705077037817,-500.0,0.0002251,2]
[311394995,1705077037826,-500.0,0.0002251,2]
[311394996,1705077037837,-594.21,0.0002251,2]
[311394997,1705077037847,-2001.96,0.0002251,2]
[311394998,1705077037857,-500.0,0.0002251,2]
[311394999,1705077037867,-683.21,0.0002251,2]
[311395000,1705077037877,-565.97,0.0002251,2]
[311395001,1705077037888,-500.0,0.0002251,2]
[311395002,1705077037898,-511.84,0.0002251,2]
[311395003,1705077037907,-1545.91,0.0002251,2]
[311395004,1705077037917,-1125.76,0.0002251,2]
[311395005,1705077037927,-500.0,0.0002251,2]
[311395007,1705077037937,-500.0,0.0002251,2]
[311395008,1705077037947,-806.95,0.0002251,2]
[311395009,1705077037956,-500.0,0.0002251,2]
[311395010,1705077037966,-1118.05,0.0002251,2]
[311395011,1705077037975,-806.37,0.0002251,2]
[311395012,1705077037984,-4705.31,0.0002251,2]
[311395014,1705077037994,-500.0,0.0002251,2]
[311395015,1705077038004,-500.0,0.0002251,2]
[311395016,1705077038014,-500.0,0.0002251,2]
[311395017,1705077038023,-4838.78,0.0002251,2]
[311395018,1705077038033,-973.61,0.0002251,2]
[311395019,1705077038043,-500.0,0.0002251,2]
[311395020,1705077038052,-3717.14,0.0002251,2]
[311395022,1705077038062,-964.46,0.0002251,2]
[311395024,1705077038071,-500.0,0.0002251,2]
[311395026,1705077038080,-500.0,0.0002251,2]
[311395028,1705077038090,-500.0,0.0002251,2]
[311395030,1705077038099,-628.62,0.0002251,2]
[311395033,1705077038109,-508.58,0.0002251,2]
[311395035,1705077038119,-1093.02,0.0002251,2]
[311395037,1705077038128,-2444.08,0.0002251,2]
[311395039,1705077038140,-500.0,0.0002251,2]
[311395041,1705077038149,-642.29949157,0.0002251,2]
[311395042,1705077038159,-1131.66,0.0002251,2]
[311395044,1705077038169,-829.37,0.0002251,2]
[311395047,1705077038178,-1941.71,0.0002251,2]
[311395048,1705077038187,-923.95,0.0002251,2]
[311395051,1705077038197,-500.0,0.0002251,2]
[311395053,1705077038206,-500.0,0.0002251,2]
[311395055,1705077038215,-500.0,0.0002251,2]
[311395057,1705077038226,-693.03,0.0002251,2]
[311395059,1705077038236,-500.0,0.0002251,2]
[311395060,1705077038245,-500.0,0.0002251,2]
[311395062,1705077038255,-546.11,0.0002251,2]
[311395065,1705077038264,-500.0,0.0002251,2]
[311395067,1705077038274,-2777.7,0.0002251,2]
[311395068,1705077038284,-500.0,0.0002251,2]
[311395071,1705077038294,-1599.45,0.0002251,2]
[311395073,1705077038303,-1275.61,0.0002251,2]
[311395074,1705077038313,-500.0,0.0002251,2]
[311395077,1705077038324,-500.0,0.0002251,2]
[311395078,1705077038334,-533.41,0.0002251,2]
[311395080,1705077038343,-500.0,0.0002251,2]
[311395082,1705077038353,-666.05,0.0002251,2]
[311395085,1705077038363,-775.82,0.0002251,2]
[311395087,1705077038373,-500.0,0.0002251,2]
[311395089,1705077038382,-500.0,0.0002251,2]
[311395091,1705077038391,-723.72,0.0002251,2]
[311395093,1705077038401,-500.0,0.0002251,2]
[311395095,1705077038410,-500.0,0.0002251,2]
[311395097,1705077038419,-1101.03,0.0002251,2]
[311395098,1705077038429,-2377.81,0.0002251,2]
[311395101,1705077038438,-500.0,0.0002251,2]
[311395102,1705077038447,-500.0,0.0002251,2]
[311395105,1705077038457,-1960.6,0.0002251,2]
[311395107,1705077038467,-612.39,0.0002251,2]
[311395109,1705077038477,-500.0,0.0002251,2]
[311395110,1705077038486,-500.0,0.0002251,2]
[311395113,1705077038499,-500.0,0.0002251,2]
[311395115,1705077038508,-500.0,0.0002251,2]
[311395116,1705077038518,-4932.76,0.0002251,2]
[311395118,1705077038527,-500.0,0.0002251,2]
[311395120,1705077038538,-555.03,0.0002251,2]
[311395122,1705077038548,-500.0,0.0002251,2]
[311395125,1705077038558,-2035.38,0.0002251,2]
[311395127,1705077038567,-500.0,0.0002251,2]
[311395128,1705077038576,-500.0,0.0002251,2]
[311395130,1705077038588,-500.0,0.0002251,2]
[311395133,1705077038597,-500.0,0.0002251,2]
[311395134,1705077038606,-595.74,0.0002251,2]
[311395137,1705077038616,-1056.92,0.0002251,2]
[311395138,1705077038625,-541.9,0.0002251,5]
[311395141,1705077038637,-500.0,0.0002251,2]
[311395142,1705077038646,-3001.53867376,0.00022511,2]
[311395145,1705077038655,-158.60896714,0.00022511,2]
[311395147,1705077038665,-318.31330327,0.00022511,2]
[311395149,1705077038674,-241.80971217,0.00022511,2]
[311395151,1705077038684,-500.0,0.00022511,2]
[311395153,1705077038693,-450.42109644,0.00022511,2]
[311395155,1705077038702,-500.0,0.00022511,2]
[311395157,1705077038711,-500.0,0.00022511,2]
[311395159,1705077038721,-500.0,0.00022511,2]
[311395161,1705077038730,-500.0,0.00022511,2]
[311395163,1705077038739,-500.0,0.00022511,2]
[311395165,1705077038748,-500.0,0.00022511,2]